Cogmind - Beta 14 @@@ ROGUE MODE // 2024.09.04 @ 14:57:51 Player: THN-L0C Result: Destroyed by 2M-39U(R) with Subdweller Beam Cannon Performance ------------- Evolutions (0) 0 Regions Visited (3) 600 Robots Destroyed (35) 175 Value Destroyed (596) 596 Prototype IDs (11) 220 Alien Tech Used (0) 0 Bonus (11) 11 TOTAL SCORE: 1602 Bonus ------- Follower Combat Kills 150 Friendly Fire -139 Cogmind --------- Core Integrity 0/250 Matter 300/300 Energy 160/160 System Corruption 1% Temperature Cool (9) Movement Treading (250) Ox1 Location -10/Subcaves Parts ------- > --- POWER (1) -------- Light Nuclear Core > --- PROPULSION (2) --- Light Treads Spiked Treads > --- UTILITY (2) ------ High-capacity Storage Unit Makeshift Light Armor Plating > --- WEAPON (2) ------- Riot Gun Subdweller Beam Cannon > --- INVENTORY (20) --- Light Ion Engine Subdweller Power Source Light Treads Subdweller Monowheel Huge Storage Unit Medium Matter Pod (100) Medium Matter Pod (100) Seismic Detector Propulsion Shielding Backup Plating I Makeshift Kinetic Plating Heavy Riot Gun Powered Cannon Battle Rifle Slug Cannon Grenade Launcher Rocket Launcher Ripper Shrapnel Trap Peak State ------------ > --- POWER ------------ Light Nuclear Core > --- PROPULSION ------- Light Treads Spiked Treads > --- UTILITY ---------- High-capacity Storage Unit Makeshift Light Armor Plating > --- WEAPON ----------- Riot Gun Rocket Launcher > --- INVENTORY -------- Light Ion Engine Subdweller Power Source Light Treads Subdweller Monowheel Huge Storage Unit Medium Matter Pod Medium Matter Pod Seismic Detector Propulsion Shielding Backup Plating I Makeshift Kinetic Plating Heavy Riot Gun Subdweller Beam Cannon Powered Cannon Battle Rifle Slug Cannon Grenade Launcher Ripper Shrapnel Trap [Rating: 20] Favorites ----------- Power Ion Engine Engine Ion Engine Power Core Light Nuclear Core Propulsion Light Treads Treads Light Treads Utility Seismic Detector Device Seismic Detector Storage High-capacity Storage Unit Protection Makeshift Light Armor Plating Weapon Assault Rifle Energy Gun EM Pulse Gun Energy Cannon Subdweller Beam Cannon Ballistic Gun Assault Rifle Ballistic Cannon Slug Cannon Launcher Grenade Launcher Special Weapon Mining Laser Slashing Weapon Ripper Build | -11 -10 -10 -10 ------- Run | Yrd Mat Min Sub Slots Evolved . | . . . . Power . | . . . . Propulsion . | . . . . Utility . | . . . . Weapon . | . . . . Parts Attached 60 | 8 17 5 30 Power 7 | 1 3 . 3 Engine 6 | 1 3 . 2 Core 1 | . . . 1 Reactor . | . . . . Propulsion 5 | 2 2 . 1 Treads 5 | 2 2 . 1 Leg . | . . . . Wheel . | . . . . Hover . | . . . . Flight . | . . . . Utility 26 | 2 6 4 14 Device 10 | 1 2 2 5 Storage 8 | 1 4 1 2 Processor . | . . . . Hackware . | . . . . Protection 8 | . . 1 7 Artifact . | . . . . Weapon 22 | 3 6 1 12 Energy Gun 3 | 2 . . 1 Energy Cannon 1 | . . . 1 Ballistic Gun 9 | 1 5 . 3 Ballistic Cannon 3 | . . . 3 Launcher 2 | . . . 2 Special Weapon 2 | . 1 1 . Impact Weapon . | . . . . Slashing Weapon 2 | . . . 2 Piercing Weapon . | . . . . Special Melee Weapon . | . . . . Unidentified Prototypes . | . . . . Parts Lost 5 | . 2 . 3 Power 2 | . 1 . 1 Propulsion . | . . . . Utility 1 | . . . 1 Weapon 2 | . 1 . 1 Highest Loss Streak 1 | . 1 . 1 To Critical Strikes . | . . . . Average Slot Usage (%) 99 | . 98 100 99 Engine 9 | . 13 14 8 Core 3 | . . . 5 Treads 28 | . 28 28 28 Device 11 | . 12 12 11 Storage 14 | . 14 14 14 Protection 1 | . . 1 2 Energy Gun 1 | . 3 . 1 Ballistic Gun 14 | . 23 27 8 Launcher 8 | . . . 12 Slashing Weapon 1 | . . . 2 Peak Build Rating 20 | 7 8 9 20 Average Rating 11 | 5 7 8 14 On Entrance 6 | . 7 8 9 Naked Turns . | . . . . Heaviest Build 94 | 13 92 50 94 Greatest Support 40 | 40 40 40 40 Greatest Overweight (x) 3 | 3 2 1 2 Average Overweight (x) . | . . . 1 Largest Inventory Capacity 25 | 8 25 20 25 Average Capacity 17 | 7 10 16 20 Most Carried 22 | 2 15 20 22 Average Carried 16 | . 7 16 19 Final Capacity 20 | 8 15 20 20 Final Carried 20 | 2 15 20 20 Class Distribution -------------------- 87% | Mutant 12% | Derelict-Mutant Dominant Class ---------------- Mutant | -10/Materials Mutant | -10/Mines Mutant | -10/Subcaves Resources | -11 -10 -10 -10 ----------- Run | Yrd Mat Min Sub Matter Collected 1572 | 198 367 270 737 Remotely . | . . . . Salvage Created 940 | 186 428 99 227 Parts 64 | 12 30 12 10 Haulers Intercepted . | . . . . Recyclers Shooed 2 | . 2 . . Parts Field Recycled . | . . . . Retrieved Matter . | . . . . Parts Self-Destructed 13 | . . . 13 Prevented . | . . . . Kills | -11 -10 -10 -10 ------- Run | Yrd Mat Min Sub Combat Hostiles Destroyed 21 | . 10 6 5 Guns 16 | . 10 6 . Cannons 1 | . . . 1 AOE 4 | . . . 4 Classes Destroyed 10 | 2 5 1 2 Worker 1 | . 1 . . Builder 1 | . . 1 . Tunneler 5 | 5 . . . Recycler 2 | 1 1 . . Operator 3 | . 3 . . Watcher 1 | . 1 . . Swarmer 12 | . 6 6 . Grunt 5 | . 4 . 1 Artisan 2 | . . . 2 Subdweller 5 | . . . 5 Best Kill Streak 5 | 5 4 3 1 Combat Bots Only 3 | . 3 3 1 Max Kills in Single Turn 2 | 1 2 1 1 Gunslinging 1 | . 1 . . Exploded 1 | . . . 1 Melee . | . . . . Uniques/NPCs Destroyed . | . . . . Combat | -11 -10 -10 -10 -------- Run | Yrd Mat Min Sub Hostile Shots Fired 136 | . 78 18 40 Missed 38 | . 22 5 11 Damage Taken 1372 | 25 528 103 716 Core 265 | . 89 6 170 Absorbed by Shields . | . . . . Regen/Repaired (Parts) 84 | . 84 . . Core Remaining (%) 100 | 100 . . . Volleys Fired 149 | 10 55 15 69 Largest 2 | 2 2 2 1 Hottest 100 | 80 100 100 80 Shots Fired 214 | 20 98 25 71 Gun 153 | 20 93 20 20 Cannon 38 | . . . 38 Launcher 13 | . . . 13 Special 10 | . 5 5 . Kinetic 120 | . 60 20 40 Thermal 26 | . 5 5 16 Explosive 13 | . . . 13 Electromagnetic 55 | 20 33 . 2 Robot Hit Streak 12 | 6 12 4 11 Robot Miss Streak 5 | 1 5 2 1 Penetration Max . | . . . . Secondary Targets 3 | . 1 2 . Max Gunslinging Chain 1 | . 1 1 . Shots Hit Robots 88 | 14 46 12 16 Core Hits 53 | 7 27 8 11 Critical Kills 1 | . . 1 . Critical Parts Destroyed 1 | . 1 . . Critical Strikes 2 | . 1 1 . Destroy 2 | . 1 1 . Melee Attacks 17 | . . . 17 Impact . | . . . . Slashing 17 | . . . 17 Piercing . | . . . . Sneak Attacks . | . . . . Combat Hostiles . | . . . . Follow-up Attacks . | . . . . Damage Inflicted 2010 | 236 700 196 878 Guns 1135 | 192 637 161 145 Cannons 81 | . . . 81 Explosions 759 | 44 63 . 652 Melee . | . . . . Ramming 11 | . . 11 . Kinetic 676 | . 413 161 102 Thermal 257 | 44 63 24 126 Explosive 607 | . . . 607 Electromagnetic 459 | 192 224 . 43 Impact . | . . . . Slashing . | . . . . Piercing . | . . . . Highest Corruption 1 | . 1 1 1 Average Corruption 1 | . 1 1 1 Corruption Purged . | . . . . Corruption Blocked . | . . . . Effects 52 | . 7 8 37 Message Errors 15 | . 1 4 10 Matter Fused 12 | . 3 2 7 Heat Flow Errors 6 | . 1 1 4 Energy Discharges 7 | . 1 1 5 Data Loss (minor) 4 | . . . 4 Data Loss (major) 3 | . 1 . 2 Misfires 3 | . . . 3 Alerts 2 | . . . 2 Overload Shots . | . . . . Overflow Damage 30 | . . . 30 Projectiles . | . . . . Explosions 30 | . . . 30 Melee . | . . . . Knockbacks . | . . . . Impact . | . . . . Kinetic . | . . . . Secondary . | . . . . Self-Inflicted Damage 37 | 25 . . 12 Shots 2 | 1 . . 1 Rammed 3 | . . 3 . Targets Rammed 3 | . . 3 . Kicked . | . . . . Crushed . | . . . . Highest Temperature 267 | 102 267 170 185 Average Temperature 44 | 44 50 45 30 Received Heat Transfer 234 | . 126 . 108 Siege Activations . | . . . . Robots Corrupted . | . . . . Combat Hostiles . | . . . . Parts Fried 3 | 2 1 . . Impact Corruptions . | . . . . Robots Melted . | . . . . Combat Hostiles . | . . . . Parts Melted 1 | . . . 1 Heat Transferred 311 | . 100 50 161 Parts Sabotaged . | . . . . Parts Stolen . | . . . . Parts Stripped . | . . . . Power Chain Reactions 3 | 1 1 . 1 Alert | -11 -10 -10 -10 ------- Run | Yrd Mat Min Sub Peak Influence 236 | 30 236 149 . Initial 19 | . 19 9 . Average 68 | 14 84 48 . Maximum Alert Level 1 | . 1 . . Low Security (%) 95 | 100 91 100 . Level 1 4 | . 8 . . Level 2 . | . . . . Level 3 . | . . . . Level 4 . | . . . . Level 5 . | . . . . High Security . | . . . . Max Security . | . . . . Squads Dispatched . | . . . . Investigation . | . . . . Extermination . | . . . . Reinforcement . | . . . . Assault . | . . . . Garrison . | . . . . Intercept . | . . . . Searches Triggered . | . . . . Construction Impeded . | . . . . Haulers Reinforced . | . . . . Active Scanning Responses . | . . . . Cargo Convoy Interrupts . | . . . . Stealth | -11 -10 -10 -10 --------- Run | Yrd Mat Min Sub Distress Signals 2 | . 2 . . Communications Jammed . | . . . . Distress Signals . | . . . . Times Spotted 44 | . 27 5 12 Peak Tracking Total 4 | . 4 2 2 Tactical Retreats 3 | . 2 . 1 Traps | -11 -10 -10 -10 ------- Run | Yrd Mat Min Sub Traps Triggered 3 | . 1 . 2 Indirectly . | . . . . Trap Hack Attempts . | . . . . Triggered . | . . . . Disarmed . | . . . . Reprogrammed . | . . . . Reused . | . . . . Traps Extracted . | . . . . Installed . | . . . . Triggered 1 | . 1 . . Most Traps Carried 2 | . . . 2 Machines | -11 -10 -10 -10 ---------- Run | Yrd Mat Min Sub Machines Disabled 2 | . 1 . 1 Max in Single Turn 1 | . 1 . 1 Machines Repaired . | . . . . Machines Dismantled . | . . . . Machines Sabotaged . | . . . . Overloaded Fab Kills . | . . . . Hacking | -11 -10 -10 -10 --------- Run | Yrd Mat Min Sub Machines Accessed 12 | . 9 1 2 Terminals 9 | . 8 1 . Fabricators . | . . . . Repair Stations 1 | . 1 . . Recycling Units . | . . . . Scanalyzers . | . . . . Garrison Access . | . . . . Total Hacks 40 | . 27 1 12 Successful 26 | . 14 . 12 Failed 14 | . 13 1 . Catastrophic 1 | . 1 . . Database Lockouts . | . . . . Manual 22 | . 21 1 . Terminals 22 | . 21 1 . Fabricators . | . . . . Repair Stations 6 | . 6 . . Recycling Units . | . . . . Scanalyzers . | . . . . Garrison Access . | . . . . Terminal Hacks 14 | . 2 . 12 Record 11 | . . . 11 Robot Analysis 2 | . 2 . . Derelict Proto ID Bank 1 | . . . 1 Fabricator Hacks . | . . . . Repair Station Hacks 5 | . 5 . . Scan Component 2 | . 2 . . Repair 2 | . 2 . . Refit 1 | . 1 . . Recycling Unit Hacks . | . . . . Scanalyzer . | . . . . Garrison Access Hacks . | . . . . Unauthorized Hacks 7 | . 7 . . Terminals 7 | . 7 . . Botnet 2 | . 2 . . Skim 5 | . 5 . . Fabricators . | . . . . Repair Stations . | . . . . Recycling Units . | . . . . Scanalyzers . | . . . . Garrison Access . | . . . . Data Cores Recovered 3 | . 3 . . Used 1 | . 1 . . Hacking Detections 10 | . 9 1 . Full Trace Events . | . . . . Feedback Events . | . . . . Feedback Blocked . | . . . . Robot Schematics Acquired . | . . . . Robots Built . | . . . . Authchips . | . . . . Time . | . . . . Total Robot Build Rating . | . . . . Part Schematics Acquired . | . . . . Parts Built . | . . . . Authchips . | . . . . Time . | . . . . Total Part Build Rating . | . . . . Parts Repaired 2 | . 2 . . Time 52 | . 52 . . Parts Recycled . | . . . . Recycled Matter . | . . . . Retrieved Matter . | . . . . Retrieved Components . | . . . . Parts Scanalyzed . | . . . . Part Schematics Acquired . | . . . . Parts Damaged . | . . . . Bothacking | -11 -10 -10 -10 ------------ Run | Yrd Mat Min Sub Used RIF Installer . | . . . . Robots Hacked . | . . . . Non-combat . | . . . . Combat . | . . . . Robot Hacks Applied . | . . . . Relay Couplers Released . | . . . . Fabnet Peak Effective % . | . . . . Robots Rewired . | . . . . Allies Hacked . | . . . . Hacks Repelled . | . . . . Allies | -11 -10 -10 -10 -------- Run | Yrd Mat Min Sub Total Allies 3 | . . 3 . Largest Group 3 | . . 3 3 Highest-Rated Group 40 | . . 40 40 Highest-Rated Ally 16 | . . 16 16 Total Orders . | . . . . Ally Attacks 38 | . . . 38 Total Damage 468 | . . . 468 Kills 6 | . . . 6 Allies Corrupted . | . . . . Allies Melted . | . . . . Intel | -11 -10 -10 -10 ------- Run | Yrd Mat Min Sub Robot Analysis Total 2 | . 2 . . Derelict Logs Recovered 2 | . . 1 1 Drone Launches . | . . . . Drone Recoveries . | . . . . Exploration | -11 -10 -10 -10 ------------- Run | Yrd Mat Min Sub Turns Passed 9610 | 151 1997 1196 6266 Spaces Moved 3924 | 67 872 632 2353 Core 13 | 13 . . . Treads 3911 | 54 872 632 2353 Legs . | . . . . Wheels . | . . . . Hover . | . . . . Flight . | . . . . Fastest Speed 50 | 50 160 160 240 Average Speed 214 | 156 160 173 247 Slowest Speed 340 | 200 320 240 340 Overloaded Moves . | . . . . Propulsion Burnouts . | . . . . Robots Hopped . | . . . . Cave-ins Triggered . | . . . . Exploration Rate (%) 69 | 4 96 81 97 Regions Visited 3 Branch Regions 2 Pre-discovered Areas . | . . . . Known Exits Taken . | . . . . Unknown Exits Taken 3 | 1 1 1 . Scrap Searched 13 | . . 2 11 Spaces Dug 24 | . 4 . 20 Terrain Destroyed 90 | 3 7 . 80 Melee 4 | . . . 4 Projectile 21 | . 4 . 17 AOE 65 | 3 3 . 59 Terrain Rammed . | . . . . Walls Destroyed . | . . . . Machines Disabled . | . . . . Actions | -11 -10 -10 -10 --------- Run | Yrd Mat Min Sub Total 4856 | 89 1355 701 2711 Wait 632 | 3 396 25 208 Move 3921 | 66 871 631 2353 Hop . | . . . . Pick Up 43 | 2 11 13 17 Fast Attach 9 | 7 2 . . Attach 3 | . . . 3 Detach . | . . . . Swap 48 | 1 15 5 27 Drop 31 | . 5 9 17 Fire 149 | 10 55 15 69 Melee 17 | . . . 17 Ram . | . . . . Kick . | . . . . Crush 3 | . . 3 . Escape Stasis . | . . . . Rewire . | . . . . Trap . | . . . . Miscellaneous . | . . . . Route ------- -11/Scrapyard -10/Materials (discovered 4 exits: [*Mat x3] / *Min) -10/Mines (discovered 2 exits: [*Mat] / *Sub) -10/Subcaves (discovered 3 exits: *Mat x2 / *Rec) History --------- Turn | Location | Event 12 | -11/Scrapyard | Discovered new exit (range 15) 152 | -11/Scrapyard | Entered Materials 232 | -10/Materials | Discovered new exit (range 13) 305 | -10/Materials | Build established: Mutant 687 | -10/Materials | Discovered new exit (range 7) 719 | -10/Materials | Discovered new exit (range 10) 1463 | -10/Materials | Discovered new exit (range 10) 1566 | -10/Materials | Learned Storage trap positions 1639 | -10/Materials | Learned 4 Recycling zone layouts 1700 | -10/Materials | Loaded intel: 11 interactive machine locations 1788 | -10/Materials | Loaded intel: 1 repair station location 1817 | -10/Materials | Learned location of 2 exits from Subcaves 1910 | -10/Materials | Loaded intel: 8 terminal locations 1990 | -10/Materials | Repaired Seismic Detector 2017 | -10/Materials | Repaired Assault Rifle 2149 | -10/Materials | Entered Mines 2445 | -10/Mines | A weapon hastily lodged in a ceiling crevice suddenly fell to the ground 2670 | -10/Mines | Discovered new exit (range 15) 2690 | -10/Mines | Received a Rocket Launcher from a helpful Derelict 2936 | -10/Mines | Assisted by bots powering up and referring to "LRC-V3" 3026 | -10/Mines | Found DCF Scrap (12 items) 3333 | -10/Mines | Discovered new exit (range 3) 3345 | -10/Mines | Entered Subcaves 3345 | -10/Subcaves | Accompanied by 3 allies 3346 | -10/Subcaves | Identified exit to Recycling 3347 | -10/Subcaves | Identified exit to Materials 4081 | -10/Subcaves | Ambushed by angry Subdweller bent on revenge 4448 | -10/Subcaves | Learned Materials trap positions 4571 | -10/Subcaves | Shifting Twisted Machinery released Battle Rifle 4590 | -10/Subcaves | Shifting Twisted Machinery released Sub. Monowheel 5595 | -10/Subcaves | Build established: Derelict-Mutant 5608 | -10/Subcaves | Shifting Twisted Machinery released Sub. Machine Gun 5613 | -10/Subcaves | Shifting Twisted Machinery released Sub. Monowheel 5768 | -10/Subcaves | Visited Clippyterm 5776 | -10/Subcaves | Learned Research security intel 6074 | -10/Subcaves | Core integrity fell below 50% 6371 | -10/Subcaves | Build established: Mutant 7002 | -10/Subcaves | Core integrity fell below 20% 7523 | -10/Subcaves | Visited 4L-MR0's lab 7584 | -10/Subcaves | Found Powered Cannon 7894 | -10/Subcaves | Shifting Twisted Machinery released Piercing Trap 7894 | -10/Subcaves | Shifting Twisted Machinery released Sub. Beam Cannon 9315 | -10/Subcaves | Build established: Derelict-Mutant 9610 | -10/Subcaves | Ambushed by angry Subdweller bent on revenge 9611 | -10/Subcaves | Destroyed by 2M-39U(R) with Subdweller Beam Cannon Last Messages --------------- 08987_ 1W-XQQ(u) cries out in pain. 08987_ 1W-XQQ(u) destroyed. 08994_ Acquired 16 matter. 09023_ K8-9P4(R): "SUBMAD!" 09031_ K8-9P4(R) destroyed. 09049_ Subatomizers dissect the Sub. Power Source. 09056_ Acquired 31 matter. 09063_ Subatomizers dissect the Sub. Power Source. 09065_ 80IM&E=OKTU ECG3SB=:%ZBHR=RU BA7M 09085_ Subatomizers dissect the Sub. Power Source. 09094_ The unstable cave ceiling collapses. 09095_ Subatomizers dissect the Sub. Power Source. 09157_ SLV8IL& O&N,>LV:W:I,KY3P0/O 09184_ System corrupted: FCS attempts to trigger Sub. Beam Cannon. 09184_ System corrupted: Sub. Beam Cannon misfires. 09579_ YV-NUB(u) builds Twisted Machinery. 09593_ YV-NUB(u) cries out in pain. 09593_ YV-NUB(u) destroyed. 09610_ 2M-39U(R) angrily emerges from the Twisted Machinery. 09610_ 2M-39U(R): "SUBHATE!" Map ----- +----------------------------------------------------+ | ## ##???## #?????????????????##### # | | ?## ## ####?#### #?????????????????????# | | ??##### #?#### ##?????????????????????## | | ??????# ## ## ##???????????????????????### | | ??????## ## #??????????????????????????? | | ???????## ## #??????????????????????????? | | ????????# ##??????????????????????????? | | ???????## #???????????????????????????? | | ??????## ## #???????????????????????????? | | ???#### #########???????????????????????????? | | ???# ##???????????????????????????????????? | | ???## ######???????????????????????????????? | | ????# ##??????????????????????????????? | | ????# ##?????????????????????????????? | | ????# ####??????????????????????????? | | ????# ## ## ##?????????????????????????? | | ##??## ## #### #?????????????????????????? | | ##??#### #?## #?????????????????????????? | | ##??### ### #??????#####??????????????? | | ##?# #?###### ####???????????? | | ## ## ### #???????????? | | #### ## ### ##?###?####?? | | ##?#### ### ##?## ### ### ## | | #????# #?# ##???##### ### ## # | | ##???####?# #???????## #?#### ## | | ####?????# ###?#####@ #????# ######## | | ###???# ### ## #????# #?????## | | #???# ##?# "" #????# ##??### | | #???##???# "" #????## #??# | | #??#########" ##% #?????#######?## | | #?##" ##" #"" "" ##?????????????# | | #?#" ## """" ###????????????#### | | #?# ##" """""R #?######????????## | | " #### " # """" ###?# ############ | | "[ "" " ## " ### ""####### # # ### | | " """ " ###?## ### | | ## """"""" "" ##???## ##" | | ##""""""""##" ##??## """ # # # ## # | | "##" " """### #### """ ########### | | ""####"""""#?# """"""" "" ###?????????? | | "##??##"""" ?# """""" ### ### #???????????? | | ##????###"##?# #### #### ####?###?####???????????? | | #????????????###??###??###???????????????????????? | | ?????????????????????????????????????????????????? | | ?????????????????????????????????????????????????? | | ?????????????????????????????????????????????????? | | ?????????????????????????????????????????????????? | | ?????????????????????????????????????????????????? | | ?????????????????????????????????????????????????? | | ?????????????????????????????????????????????????? | +----------------------------------------------------+ Best States ------------- Heat Dissipation 25 Energy Generation 14 Energy Capacity 250 Matter Stores 300 Matter Capacity 300 Sight Range 16 Terrain Scan Density 10 Armor Coverage 150 Evasion (%) 40 Recoil Reduction 2 Item Schematics ----------------- None Robot Schematics ------------------ None Fabricated ------------ Nothing Alien Tech Used ----------------- None Achievements -------------- None Challenges ------------ None Game ------ Seed LatentShrapnelRailgun Manual? 0 Play Time 00:34:16 Cumulative 209.8 hours Start 2024.09.04 @ 14:23:39 End 2024.09.04 @ 14:57:51 Sessions 1 Manual Loads 0 Difficulty Rogue Special Mode None Game No. 182 Rogue 182 Adventurer 0 Explorer 0 Win Type - Total 1 Types 0/0/0/1/0/0/0/0/0 Lore% 63 Gallery% 73 Achievement% 54 Wizard Run 0 Options --------- Layout 2 ASCII 0 Keyboard 1 Movement Vi Keybinds 0 Fullscreen 1 Font 32/SmallcapsGlow Map View 77x44 Zoom Use 0% Tactical HUD 1 Map Filters NONE Filters NONE Steam 1 RUN: 91c7c329-2064-4c45-bd0d-1a7a89d31ed4